bitfinex-derivatives/quotes_SOLF0:USTF0_20250311
["timestamp","ask_amount","ask_price","bid_price","bid_amount"]
[1741713522458,7.9573,125.71,125.68,7.9586]
[1741713523067,283.14783707,125.73,125.68,7.9586]
[1741713523068,283.14783707,125.73,125.7,7.9575]
[1741713523262,262.62,125.73,125.7,7.9575]
[1741713523462,270.5762,125.73,125.7,7.9575]
[1741713523761,262.62,125.73,125.7,7.9575]
[1741713523962,262.62,125.73,125.68,36.02100873]
[1741713524366,20.52783707,125.77,125.68,56.5488458]
[1741713524563,7.9535,125.77,125.73,7.9553]
[1741713524864,283.12783707,125.79,125.72,35.96]
[1741713525059,291.08003707,125.79,125.76,7.9538]
[1741713525668,262.6,125.79,125.76,7.9538]
[1741713525863,262.6,125.79,125.74,0.06061039]
[1741713526362,32.68124177,125.8,125.76,20.52783707]
[1741713526561,32.68124177,125.8,125.79,7.9519]
[1741713527166,283.06783707,125.85,125.79,7.9519]
[1741713527369,283.06783707,125.85,125.77,35.96]
[1741713527671,283.06783707,125.85,125.81,0.05355919]
[1741713527862,262.54,125.85,125.81,0.05355919]
[1741713528862,7.9492,125.84,125.81,0.05355919]
[1741713529059,262.54,125.85,125.81,0.05355919]
[1741713529961,7.9499,125.83,125.81,0.05355919]
[1741713530160,262.54,125.85,125.81,0.05355919]
[1741713530965,7.95,125.82,125.81,0.05355919]
[1741713531169,262.54,125.85,125.81,0.05355919]
[1741713532864,32.7519202,125.84,125.81,0.05355919]
[1741713533171,262.54,125.85,125.81,0.05355919]
[1741713533873,295.2919202,125.85,125.81,0.05355919]
[1741713534172,262.54,125.85,125.81,0.05355919]
[1741713534972,7.95,125.82,125.81,0.05355919]
[1741713535474,35.9,125.83,125.73,197.6061]
[1741713535671,7.952,125.79,125.76,7.9535]
[1741713535977,7.952,125.79,125.74,35.9]
[1741713536171,7.953,125.78,125.75,7.954]
[1741713536568,32.7519202,125.82,125.74,35.9]
[1741713536772,0.05308892,125.78,125.75,8.00449683]
[1741713537370,0.05308892,125.78,125.75,0.05029683]
[1741713537870,8.00588892,125.78,125.75,0.05029683]
[1741713538075,8.00588892,125.78,125.75,8.00469683]
[1741713538276,0.05308892,125.78,125.75,0.05029683]
[1741713538473,8.00598892,125.78,125.75,0.05029683]
[1741713538976,8.00598892,125.78,125.75,8.00469683]
[1741713539276,7.9532,125.77,125.75,0.05029683]
[1741713539876,7.9538,125.76,125.75,0.05029683]
[1741713540773,35.1319202,125.76,125.69,5.1632]
[1741713540972,35.88,125.75,125.69,5.1632]
[1741713541176,7.9563,125.73,125.7,7.9576]
[1741713541472,267.0981,125.77,125.69,5.1632]
[1741713541675,7.9556,125.74,125.69,5.1632]
[1741713541872,8.01276843,125.74,125.72,0.05154953]
[1741713542075,0.05716843,125.74,125.72,0.05154953]
[1741713542677,8.01256843,125.74,125.72,0.05154953]
[1741713543179,0.05716843,125.74,125.72,0.05154953]
[1741713543377,7.9557,125.73,125.72,0.05154953]
[1741713543580,0.05716843,125.74,125.72,0.05154953]
[1741713543979,8.01256843,125.74,125.72,0.05154953]
[1741713544576,7.9557,125.73,125.72,0.05154953]
[1741713544778,0.05716843,125.74,125.69,2.5188]
[1741713544976,0.05716843,125.74,125.68,35.88]
[1741713545178,32.80908863,125.74,125.65,5.0978]
[1741713545475,32.7519202,125.72,125.65,5.0978]
[1741713545680,7.958,125.7,125.66,7.9596]
[1741713545875,32.7519202,125.72,125.65,5.0978]
[1741713546072,0.06034458,125.69,125.67,0.05405652]
[1741713546870,0.06034458,125.69,125.68,7.9589]
[1741713548276,0.06034458,125.69,125.67,0.05405652]
[1741713549380,0.06034458,125.69,125.67,8.01325652]
[1741713549783,0.06034458,125.69,125.67,0.05405652]
[1741713549983,0.06034458,125.69,125.68,7.9589]
[1741713551681,0.06034458,125.69,125.67,8.01325652]
[1741713552283,0.06034458,125.69,125.68,7.9581]
[1741713553077,20.51453776,125.74,125.71,7.9559]
[1741713553278,20.51453776,125.76,125.71,7.9559]
[1741713553479,28.46783776,125.76,125.7,35.88]
[1741713553683,262.36,125.77,125.71,35.88]
[1741713553879,262.36,125.77,125.71,38.545]
[1741713554377,0.05632211,125.75,125.73,0.05481918]
[1741713556088,7.9543,125.74,125.73,0.05481918]
[1741713558588,8.01032211,125.75,125.73,0.05481918]
[1741713559385,7.9567,125.71,125.65,190.0]
[1741713559578,20.51453776,125.74,125.65,35.86]
[1741713559781,22.93853776,125.76,125.65,56.37453776]
[1741713559988,7.9553,125.73,125.68,7.9579]
[1741713560187,22.93853776,125.76,125.65,56.37453776]
[1741713560387,20.51453776,125.74,125.65,56.37453776]
[1741713560585,20.5717848,125.72,125.69,0.05787762]
[1741713560786,20.51453776,125.7,125.69,0.05787762]
[1741713561088,7.9599,125.66,125.61,280.39615478]
[1741713561287,20.51453776,125.68,125.61,54.53615478]
[1741713561483,20.51453776,125.68,125.61,90.39615478]
[1741713561789,7.96,125.65,125.61,90.39615478]
[1741713562182,0.05791846,125.64,125.62,0.05090396]
[1741713562689,0.05791846,125.64,125.62,8.01250396]
[1741713562989,0.05791846,125.64,125.62,0.05090396]
[1741713563389,0.05791846,125.64,125.63,7.9613]
[1741713563580,0.05791846,125.64,125.62,0.05090396]
[1741713564789,8.01861846,125.64,125.62,0.05090396]
[1741713564983,0.05791846,125.64,125.62,0.05090396]
[1741713565588,7.9613,125.63,125.62,0.05090396]
[1741713566090,0.05791846,125.64,125.62,0.05090396]
[1741713567188,0.05791846,125.64,125.62,8.01250396]
[1741713567390,0.05791846,125.64,125.62,35.91090396]
[1741713567787,7.9584,125.68,125.62,35.91090396]
[1741713568183,262.52,125.69,125.62,35.91090396]
[1741713568386,7.959,125.67,125.62,35.91090396]
[1741713568593,262.52,125.69,125.62,35.91090396]
[1741713569090,0.05670722,125.67,125.62,35.91090396]
[1741713569291,0.05670722,125.67,125.62,0.05090396]
[1741713569492,7.9597,125.66,125.63,7.9609]
[1741713569692,0.05670722,125.67,125.62,0.05090396]
[1741713569997,0.05670722,125.67,125.63,7.9609]
[1741713570300,0.05670722,125.67,125.62,0.05090396]
[1741713570687,68.76362923,125.67,125.62,0.05090396]
[1741713571094,7.9611,125.64,125.62,0.05090396]
[1741713571294,68.76362923,125.67,125.62,0.05090396]
[1741713571295,68.70692201,125.67,125.62,0.05090396]
[1741713571493,7.9613,125.63,125.62,0.05090396]
[1741713572397,0.05136597,125.64,125.62,0.05090396]
[1741713572595,7.9613,125.63,125.62,0.05090396]
[1741713572892,0.05136597,125.64,125.62,0.05090396]
[1741713573095,8.01236597,125.64,125.62,0.05090396]
[1741713573492,0.05136597,125.64,125.62,0.05090396]
[1741713573801,7.9613,125.63,125.62,0.05090396]
[1741713573997,0.05136597,125.64,125.62,0.05090396]
[1741713574192,0.05136597,125.64,125.63,7.9613]
[1741713577401,0.05136597,125.64,125.62,43.87240396]
[1741713577602,0.05136597,125.64,125.56,43.98535478]
[1741713577795,262.52,125.69,125.56,43.98535478]
[1741713578003,262.52,125.69,125.58,32.84692201]
[1741713578497,7.9597,125.66,125.61,7.9621]
[1741713578697,0.05468623,125.65,125.62,0.05051379]
[1741713580400,7.9613,125.63,125.62,0.05051379]
[1741713580702,68.68692201,125.63,125.56,49.66278737]
[1741713581104,35.84,125.63,125.56,49.66278737]
[1741713581903,0.05939618,125.61,125.58,0.051479]
[1741713582099,7.9635,125.6,125.58,0.051479]
[1741713582501,7.9638,125.59,125.58,0.051479]
[1741713582699,0.05939618,125.61,125.58,0.051479]
[1741713584106,7.9635,125.6,125.58,0.051479]
[1741713584407,0.05939618,125.61,125.58,0.051479]
[1741713585696,8.02189618,125.61,125.58,8.015479]
[1741713586811,0.05939618,125.61,125.59,7.9634]
[1741713587310,0.05939618,125.61,125.58,0.051479]
[1741713588404,7.9638,125.59,125.58,0.051479]
[1741713592512,20.54744751,125.6,125.55,2.1522]
[1741713592815,56.38744751,125.6,125.55,2.1522]
[1741713593515,0.05342158,125.59,125.56,0.05548085]
[1741713593716,7.9651,125.57,125.56,0.05548085]
[1741713596314,0.05342158,125.59,125.56,0.05548085]
[1741713596506,7.9648,125.58,125.56,8.02108085]
[1741713596712,0.05342158,125.59,125.56,0.05548085]
[1741713597609,7.9651,125.57,125.56,0.05548085]
[1741713598915,7.9647,125.58,125.56,0.05548085]
[1741713599416,0.05342158,125.59,125.56,0.05548085]
[1741713600117,7.9651,125.57,125.56,0.05548085]
[1741713600312,0.05342158,125.59,125.52,4.4913]
[1741713600313,20.54744751,125.58,125.52,4.4913]
[1741713600818,7.9667,125.55,125.52,12.4594]
[1741713601212,20.54744751,125.58,125.52,4.4913]
[1741713601607,20.6019204,125.56,125.54,0.05029967]
[1741713601812,7.9663,125.55,125.54,0.05029967]
[1741713603418,7.9684,125.52,125.5,43.98535478]
[1741713604021,56.36744751,125.56,125.5,43.98535478]
[1741713604512,0.05085524,125.54,125.52,8.02445649]
[1741713604710,0.05085524,125.54,125.52,0.05675649]
[1741713605114,8.01785524,125.54,125.52,0.05675649]
[1741713605311,0.05085524,125.54,125.52,0.05675649]
[1741713605722,0.05085524,125.54,125.53,7.9676]
[1741713606224,20.54744751,125.58,125.52,35.87675649]
[1741713606521,262.8,125.59,125.53,20.54744751]
[1741713606723,20.54744751,125.62,125.53,22.89414751]
[1741713606921,20.54744751,125.62,125.54,2.2806]
[1741713607122,20.54744751,125.64,125.54,2.2806]
[1741713607321,0.05686196,125.59,125.58,7.9644]
[1741713607519,262.8,125.65,125.58,35.82]
[1741713607723,20.54744751,125.64,125.58,35.82]
[1741713608124,20.54744751,125.62,125.57,7.9646]
[1741713608623,0.0590457,125.61,125.58,0.05797023]
[1741713609516,7.9632,125.6,125.58,0.05797023]
[1741713609720,0.0590457,125.61,125.58,0.05797023]
[1741713610325,20.60649321,125.61,125.58,0.05797023]
[1741713610525,28.51124751,125.59,125.58,0.05797023]
[1741713611323,7.9638,125.59,125.58,0.05797023]
[1741713612628,7.9657,125.57,125.54,2.2806]
[1741713612829,20.54744751,125.6,125.54,2.2806]
[1741713613329,7.9655,125.57,125.54,2.2806]
[1741713613519,20.54744751,125.6,125.54,2.2806]
[1741713613919,0.05391649,125.58,125.56,0.05890856]
[1741713614732,7.9651,125.57,125.56,0.05890856]
[1741713616330,0.05391649,125.58,125.56,0.05890856]
[1741713617532,7.9651,125.57,125.56,0.05890856]
[1741713618532,0.05391649,125.58,125.56,0.05890856]
[1741713619129,0.05391649,125.58,125.57,7.9651]
[1741713619335,0.05391649,125.58,125.56,0.05890856]
[1741713619727,8.01871649,125.58,125.56,0.05890856]
[1741713619931,0.05391649,125.58,125.56,0.05890856]
[1741713620524,8.01871649,125.58,125.56,0.05890856]
[1741713620732,0.05391649,125.58,125.56,0.05890856]
[1741713620921,8.01831649,125.58,125.56,8.02430856]
[1741713621328,0.05391649,125.58,125.56,8.02430856]
[1741713621936,0.05391649,125.58,125.57,7.9651]
[1741713623036,0.05391649,125.58,125.56,8.02430856]
[1741713623429,0.05391649,125.58,125.56,0.05890856]
[1741713624638,20.54744751,125.57,125.56,0.05890856]
[1741713624837,0.05391649,125.58,125.56,0.05890856]
[1741713625430,0.05391649,125.58,125.56,8.02460856]
[1741713625635,0.05391649,125.58,125.56,0.05890856]
[1741713625834,8.01891649,125.58,125.56,0.05890856]
[1741713626037,0.05391649,125.58,125.56,0.05890856]
[1741713626233,20.54744751,125.63,125.56,0.05890856]
[1741713626940,20.54744751,125.63,125.57,7.9648]
[1741713627148,20.54744751,125.61,125.57,7.9648]
[1741713627539,0.05471649,125.6,125.58,0.05185453]
[1741713628135,28.51124751,125.59,125.58,0.05185453]
[1741713628534,20.54744751,125.59,125.54,2.2806]
[1741713628738,7.9654,125.57,125.54,2.2806]
[1741713628944,20.54744751,125.59,125.54,2.2806]
[1741713629245,7.9654,125.57,125.54,10.2472]
[1741713629743,8.01869682,125.57,125.54,10.30208537]
[1741713630946,7.9658,125.56,125.54,10.30208537]
[1741713631147,20.60074433,125.57,125.54,0.05488537]
[1741713632048,7.9663,125.55,125.54,0.05488537]
[1741713632247,0.05329682,125.57,125.54,0.05488537]
[1741713632446,0.05329682,125.57,125.56,7.9657]
[1741713633743,0.05329682,125.57,125.55,7.9661]
[1741713634138,0.05329682,125.57,125.54,0.05488537]
[1741713634343,0.05329682,125.57,125.56,7.9657]
[1741713634549,0.05329682,125.57,125.54,0.05488537]
[1741713634849,0.05329682,125.57,125.56,7.9657]
[1741713635048,35.76,125.62,125.54,0.05488537]
[1741713635344,7.9625,125.62,125.54,20.54744751]
[1741713635542,7.9625,125.62,125.55,2.1941]
[1741713635738,7.9625,125.62,125.56,35.74]
[1741713636047,7.9625,125.62,125.57,2.1972]
[1741713636248,0.05370371,125.6,125.58,0.05176706]
[1741713636647,7.9638,125.59,125.58,0.05176706]
[1741713636947,0.05370371,125.6,125.58,0.05176706]
[1741713637451,7.9638,125.59,125.58,0.05176706]
[1741713639754,0.05370371,125.6,125.58,0.05176706]
[1741713640145,0.05370371,125.6,125.59,7.9638]
[1741713640345,0.05370371,125.6,125.58,0.05176706]
[1741713640747,0.05370371,125.6,125.59,7.9638]
[1741713641646,283.34744751,125.65,125.58,0.05176706]
[1741713641856,283.34744751,125.65,125.6,7.9627]
[1741713642050,7.9622,125.62,125.6,7.9627]
[1741713642853,7.9625,125.61,125.6,0.0559966]
[1741713643656,28.50994751,125.61,125.6,0.0559966]
[1741713645553,7.9625,125.61,125.6,0.0559966]
[1741713647657,0.05392574,125.62,125.6,0.0559966]
[1741713648448,7.9625,125.61,125.6,0.0559966]
[1741713649460,8.01632574,125.62,125.6,0.0559966]
[1741713649957,7.9625,125.61,125.6,0.0559966]
[1741713650459,0.05392574,125.62,125.6,0.0559966]
[1741713650656,8.01622574,125.62,125.6,0.0559966]
[1741713651257,7.9625,125.61,125.6,0.0559966]
[1741713652056,8.01612574,125.62,125.6,0.0559966]
[1741713652260,0.05392574,125.62,125.6,0.0559966]
[1741713652460,8.01612574,125.62,125.6,0.0559966]
[1741713652655,0.05392574,125.62,125.6,0.0559966]
[1741713653057,0.05392574,125.62,125.61,7.9625]
[1741713653263,0.05392574,125.62,125.6,0.0559966]
[1741713654061,0.05392574,125.62,125.61,7.9625]
[1741713656565,0.05392574,125.62,125.6,0.0559966]
[1741713657766,8.01612574,125.62,125.6,0.0559966]
[1741713658368,0.05392574,125.62,125.6,0.0559966]
[1741713659759,0.05392574,125.62,125.61,7.9625]
[1741713659968,0.05392574,125.62,125.6,2.1777966]
[1741713660569,8.01612574,125.62,125.6,2.1777966]
[1741713660766,0.05392574,125.62,125.6,2.1777966]
[1741713661268,0.05392574,125.62,125.61,7.9625]
[1741713662464,262.8,125.65,125.6,15.32082228]
[1741713662772,262.8,125.65,125.64,7.9606]
[1741713663069,13.14302568,125.68,125.65,7.9598]
[1741713663258,13.14302568,125.68,125.62,48.82302568]
[1741713663464,13.14302568,125.68,125.63,2.3089]
[1741713663665,0.05554737,125.66,125.64,0.0585462]
[1741713663866,7.96,125.65,125.64,0.0585462]
[1741713664167,21.10302568,125.65,125.64,0.0585462]
[1741713665168,21.16225968,125.66,125.64,0.0585462]
[1741713665375,13.20285968,125.66,125.64,0.0585462]
[1741713665562,7.96,125.65,125.64,0.0585462]
[1741713666165,13.20285968,125.66,125.64,0.0585462]
[1741713666873,7.96,125.65,125.64,0.0585462]
[1741713668368,13.20285968,125.66,125.64,0.0585462]
[1741713668565,0.059834,125.66,125.64,0.0585462]
[1741713669168,0.059834,125.66,125.65,7.96]
[1741713669774,0.059834,125.66,125.64,8.0189462]
[1741713669977,13.14302568,125.65,125.64,0.0585462]
[1741713670275,13.14302568,125.65,125.64,8.0191462]
[1741713670485,0.059834,125.66,125.64,0.0585462]
[1741713670977,0.059834,125.66,125.65,7.96]
[1741713672079,0.059834,125.66,125.64,8.0188462]
[1741713672378,0.059834,125.66,125.64,0.0585462]
[1741713672676,0.059834,125.66,125.65,7.96]
[1741713673876,13.20285968,125.66,125.64,8.0188462]
[1741713674273,13.20285968,125.66,125.64,0.0585462]
[1741713674779,0.059834,125.66,125.64,0.0585462]
[1741713674970,0.059834,125.66,125.65,7.96]
[1741713676272,13.14302568,125.69,125.64,13.20157188]
[1741713676769,13.14302568,125.68,125.65,7.9599]
[1741713677075,13.14302568,125.67,125.63,35.66]
[1741713677276,7.9597,125.66,125.63,35.66]
[1741713677576,13.2026134,125.66,125.64,0.05432065]
[1741713677971,21.1623134,125.66,125.64,0.05432065]
[1741713678279,13.2026134,125.66,125.64,0.05432065]
[1741713678469,21.10302568,125.65,125.64,0.05432065]
[1741713679080,8.01928772,125.66,125.64,0.05432065]
[1741713679273,13.14302568,125.65,125.64,0.05432065]
[1741713679681,21.10302568,125.65,125.64,0.05432065]
[1741713680577,7.9625,125.61,125.6,43.98535478]
[1741713680880,13.14302568,125.62,125.6,43.98535478]
[1741713681081,21.10552568,125.61,125.6,43.98535478]
[1741713681377,13.14302568,125.61,125.6,43.98535478]
[1741713681578,13.14302568,125.61,125.57,43.98535478]
[1741713681779,13.14302568,125.61,125.59,8.01883584]
[1741713681974,13.14302568,125.61,125.59,0.05533584]
[1741713682283,0.05161754,125.62,125.61,7.9625]
[1741713683181,262.6,125.63,125.6,17.65522568]
[1741713683378,262.6,125.63,125.6,4.5122]
[1741713683885,21.10582568,125.61,125.59,0.05533584]
[1741713684180,21.16256062,125.61,125.59,0.05533584]
[1741713684382,7.9632,125.6,125.59,0.05533584]
[1741713685778,21.10812568,125.57,125.56,43.98535478]
[1741713686179,13.14302568,125.58,125.56,43.98535478]
[1741713686374,21.10812568,125.58,125.56,43.98535478]
[1741713686776,7.9651,125.57,125.56,44.04199033]
[1741713686982,0.0565292,125.58,125.56,44.04199033]
[1741713687175,13.19955488,125.58,125.56,44.04199033]
[1741713687381,7.9651,125.57,125.56,44.04199033]
[1741713687585,13.19955488,125.58,125.54,132.18987182]
[1741713687887,13.14302568,125.55,125.54,132.18987182]
[1741713688284,7.967,125.54,125.5,19.01753421]
[1741713688484,13.14302568,125.53,125.5,11.04843421]
[1741713688685,13.14302568,125.53,125.51,0.05951034]
[1741713688686,21.11102568,125.53,125.51,0.05951034]
[1741713688884,13.19944539,125.53,125.51,0.05951034]
[1741713689993,21.16714539,125.53,125.51,0.05951034]
[1741713690184,13.19944539,125.53,125.51,0.05951034]
[1741713690391,0.05641971,125.53,125.51,0.05951034]
[1741713690592,20.62762569,125.53,125.51,0.05951034]
[1741713690882,20.62762569,125.53,125.5,11.04843421]
[1741713691083,28.54010598,125.51,125.5,11.04843421]
[1741713691294,20.57120598,125.51,125.43,35.62]
[1741713691483,20.57120598,125.48,125.43,35.62]
[1741713691688,20.57120598,125.48,125.42,7.9743]
[1741713691992,0.0533595,125.47,125.44,0.05860693]
[1741713692793,8.0248595,125.47,125.44,0.05860693]
[1741713692987,0.0533595,125.47,125.44,0.05860693]
[1741713694093,0.0533595,125.47,125.45,7.9722]
[1741713694592,0.0533595,125.47,125.44,0.05860693]
[1741713695192,20.57120598,125.46,125.44,0.05860693]
[1741713695595,41.14241196,125.46,125.38,2.3411]
[1741713695790,20.57120598,125.43,125.38,2.3411]
[1741713695993,20.57120598,125.43,125.37,35.62]
[1741713696593,28.54550598,125.43,125.35,27.37520598]
[1741713696891,0.05500554,125.41,125.39,0.056112]
[1741713697196,7.9776,125.38,125.31,1.465411]
[1741713697496,28.54880598,125.38,125.31,1.465411]
[1741713697695,20.57120598,125.38,125.3,138.91277182]
[1741713697897,20.57120598,125.36,125.3,138.91277182]
[1741713698096,20.57120598,125.34,125.3,132.18987182]
[1741713698296,20.57120598,125.32,125.29,221.52611625]
[1741713698495,20.57120598,125.3,125.29,221.52611625]
[1741713698696,20.57120598,125.3,125.25,4.5092]
[1741713698697,7.9835,125.28,125.25,4.5092]
[1741713698898,28.55470598,125.28,125.25,2.3077]
[1741713699195,0.05645025,125.28,125.27,7.9841]
[1741713699393,0.05645025,125.28,125.25,2.36446147]
[1741713699894,262.92,125.31,125.25,37.98446147]
[1741713701098,262.92,125.31,125.3,7.9822]
[1741713701300,0.05163735,125.29,125.25,37.98446147]
[1741713701602,295.94416863,125.31,125.25,2.3077]
[1741713701802,0.05914483,125.28,125.26,0.0555505]
[1741713702598,8.04304483,125.28,125.26,0.0555505]
[1741713702897,33.02416863,125.27,125.22,2.2015]
[1741713703101,7.9863,125.24,125.19,7.9887]
[1741713703297,7.9863,125.24,125.16,2.1377]
[1741713703298,35.64,125.26,125.16,4.4226]
[1741713703709,35.64,125.26,125.23,7.9866]
[1741713703900,35.64,125.26,125.19,35.66]
[1741713704099,35.66,125.27,125.19,35.66]
[1741713704300,0.06093695,125.26,125.23,0.05765075]
[1741713705506,0.06093695,125.26,125.24,7.9856]
[1741713706010,0.06093695,125.26,125.23,8.04415075]
[1741713706212,0.06093695,125.26,125.23,0.05765075]
[1741713707307,263.26,125.3,125.23,35.71765075]
[1741713707508,35.66,125.34,125.24,2.242]
[1741713707909,35.66,125.34,125.25,33.02416863]
[1741713708307,263.26,125.35,125.28,33.02416863]
[1741713708512,5.22e-05,125.31,125.29,35.66]
[1741713708817,35.66,125.4,125.35,7.9787]
[1741713709015,35.66,125.4,125.3,33.02416863]
[1741713709321,263.26,125.41,125.34,33.02416863]
[1741713709503,263.26,125.41,125.35,40.1183]
[1741713710005,0.05543921,125.39,125.38,7.9767]
[1741713710208,0.05543921,125.39,125.36,0.05682448]
[1741713710718,7.9778,125.37,125.36,0.05682448]
[1741713711215,7.9778,125.37,125.36,2.448e-05]
[1741713711613,7.9805,125.33,125.28,35.66]
[1741713711815,0.05543921,125.39,125.28,35.66]
[1741713711816,33.02416863,125.35,125.28,43.6433]
[1741713712210,33.02416863,125.35,125.26,4.4583]
[1741713712515,7.982,125.31,125.26,4.4583]
[1741713712719,0.05338603,125.32,125.29,0.05040612]
[1741713714611,0.05338603,125.32,125.29,35.69040612]
[1741713714815,35.64,125.37,125.29,35.69040612]
[1741713715010,35.64,125.37,125.32,7.9809]
[1741713715210,35.64,125.37,125.29,35.64]
[1741713715417,68.66416863,125.37,125.3,7.982]
[1741713715614,68.66416863,125.37,125.29,35.64]
[1741713715819,7.9786,125.36,125.29,35.64]
[1741713716020,0.05145509,125.34,125.32,0.05492739]
[1741713716415,0.05145509,125.34,125.32,8.03532739]
[1741713716617,0.05145509,125.34,125.32,0.05492739]
[1741713716916,0.05145509,125.34,125.33,7.9803]
[1741713717118,35.64,125.37,125.32,0.05492739]
[1741713717315,7.9773,125.38,125.32,0.05492739]
[1741713717619,7.9773,125.38,125.34,7.9791]
[1741713717813,7.9773,125.38,125.32,0.05492739]
[1741713718017,7.9778,125.37,125.33,7.98]
[1741713718216,0.05451471,125.36,125.34,0.06088624]
[1741713718719,7.979,125.35,125.34,0.06088624]
[1741713719221,0.05451471,125.36,125.34,0.06088624]
[1741713720419,7.979,125.35,125.34,0.06088624]
[1741713720927,0.05451471,125.36,125.3,2.284]
[1741713721924,0.05451471,125.36,125.32,0.05647344]
[1741713722322,35.69451471,125.36,125.32,0.05647344]
[1741713722521,33.02416863,125.35,125.32,0.05647344]
[1741713723123,7.9803,125.33,125.32,0.05647344]
[1741713723918,7.9839,125.28,125.2,33.02416863]
[1741713724121,263.26,125.33,125.23,4.4261]
[1741713724318,33.02416863,125.28,125.23,4.4261]
[1741713724524,7.9859,125.25,125.23,4.4261]
[1741713724727,7.9859,125.25,125.23,2.1314]
[1741713725025,68.66416863,125.28,125.19,2.2839]
[1741713725227,0.05420189,125.25,125.23,0.05064905]
[1741713725521,7.9861,125.24,125.23,0.05064905]
[1741713725727,43.6261,125.24,125.23,0.05064905]
[1741713726626,43.6261,125.24,125.23,4.905e-05]
[1741713726931,35.64,125.24,125.15,37.9239]
[1741713727131,33.02416863,125.22,125.15,37.9239]
[1741713727428,68.66416863,125.24,125.17,7.9905]
[1741713727623,68.66416863,125.24,125.15,37.9239]
[1741713727820,0.05806738,125.21,125.18,0.0542001]
[1741713729126,35.64,125.2,125.18,0.0542001]
[1741713729333,33.02416863,125.19,125.18,0.0542001]
[1741713729630,33.02416863,125.19,125.13,4.5031]
[1741713729931,35.64,125.2,125.08,223.02416863]
[1741713730124,33.02416863,125.18,125.09,39.9052]
[1741713730324,263.44,125.17,125.09,4.2652]
[1741713730524,35.64,125.16,125.09,4.2652]
[1741713730729,35.64,125.16,125.12,0.05906563]
[1741713730730,0.05550238,125.14,125.12,0.05906563]
[1741713732725,0.05550238,125.14,125.13,7.9931]
[1741713733025,0.05550238,125.14,125.12,0.05906563]
[1741713733231,7.9931,125.13,125.12,0.05906563]
[1741713734036,0.05550238,125.14,125.12,0.05906563]
[1741713734236,0.05550238,125.14,125.01,223.02416863]
[1741713734534,7.994,125.12,125.05,4.3164]
[1741713734731,33.02416863,125.15,125.05,4.3164]
[1741713734732,70.05558424,125.16,125.08,7.996]
[1741713735041,7.9966,125.08,125.05,4.3164]
[1741713735230,33.02416863,125.1,125.05,4.3164]
[1741713735432,0.05750444,125.08,125.05,4.37147868]
[1741713736431,0.05750444,125.08,125.07,7.9969]
[1741713736840,35.64,125.15,125.11,7.994]
[1741713737229,35.64,125.15,125.07,35.64]
[1741713737635,35.64,125.15,125.08,2.1844]
[1741713737930,0.05320813,125.13,125.1,0.0611358]
[1741713738345,8.04630813,125.13,125.1,0.0611358]
[1741713738534,0.05320813,125.13,125.1,0.0611358]
[1741713738937,33.02416863,125.11,125.06,7.9974]
[1741713739137,35.66,125.1,125.05,4.3164]
[1741713739339,7.9967,125.08,125.02,2.1844]
[1741713739546,35.66,125.1,125.02,2.1844]
[1741713739836,7.9961,125.09,125.02,2.1844]
[1741713740037,35.66,125.1,125.02,2.1844]
[1741713740339,0.05151135,125.07,125.04,0.05081276]
[1741713740639,35.66,125.06,125.04,0.05081276]
[1741713740943,33.02416863,125.05,124.93,35.66]
[1741713741134,33.02416863,125.03,124.96,8.0036]
[1741713741338,35.66,125.02,124.96,8.0036]
[1741713741539,35.66,125.02,124.94,4.4914]
[1741713741940,263.64,125.01,124.94,4.4914]
[1741713742136,0.05439172,124.99,124.97,0.0549132]
[1741713743835,0.05439172,124.99,124.98,8.0027]
[1741713744038,263.64,125.01,124.98,8.0027]
[1741713744245,263.64,125.01,124.97,0.0549132]
[1741713744842,263.64,125.01,124.99,8.0016]
[1741713745445,0.05939694,125.01,125.0,8.0014]
[1741713746050,43.6779,125.06,125.02,8.0]
[1741713746239,263.8,125.07,124.98,2.3071]
[1741713746550,53.94637888,125.05,124.98,2.3071]
[1741713746742,53.94637888,125.03,124.97,8.0028]
[1741713746946,35.68,125.06,124.96,35.68]
[1741713747141,53.94637888,125.04,124.98,8.0025]
[1741713747343,0.06101229,125.01,124.99,0.06094592]
[1741713747640,35.68,125.01,124.99,0.06094592]
[1741713747948,35.73124936,125.01,124.99,0.06094592]
[1741713748136,61.94777888,125.0,124.93,2.2346]